[Event "*** Titled Tuesday Blitz"]
[Site "Chess.com"]
[Date "2020.11.10"]
[Round "1"]
[White "CM_rui"]
[Black "Mazetovic"]
[Result "0-1"]
[WhiteElo "2393"]
[BlackElo "2754"]
[TimeControl "180+1"]
[EndTime "10:07:33 PST"]
[Termination "Mazetovic won by checkmate"]

1. e4 {[%clk 0:03:00.7]} 1... c5 {[%clk 0:02:56.5]} 2. Nf3 {[%clk 0:03:01.1]}
2... Nc6 {[%clk 0:02:56]} 3. c4 {[%clk 0:03:01.3]} 3... g6 {[%clk 0:02:54.8]} 4.
d4 {[%clk 0:03:01.1]} 4... cxd4 {[%clk 0:02:54.8]} 5. Nxd4 {[%clk 0:03:01.9]}
5... Bg7 {[%clk 0:02:55.6]} 6. Be3 {[%clk 0:03:01.4]} 6... Nf6 {[%clk
0:02:55.8]} 7. Nc3 {[%clk 0:03:01.4]} 7... d6 {[%clk 0:02:54.1]} 8. Be2 {[%clk
0:03:01.5]} 8... O-O {[%clk 0:02:54.2]} 9. O-O {[%clk 0:03:01.9]} 9... Bd7
{[%clk 0:02:54.5]} 10. Rc1 {[%clk 0:03:02.1]} 10... Nxd4 {[%clk 0:02:53.9]} 11.
Bxd4 {[%clk 0:03:03]} 11... Bc6 {[%clk 0:02:54.3]} 12. f3 {[%clk 0:03:03.6]}
12... a5 {[%clk 0:02:53.2]} 13. Kh1 {[%clk 0:03:02.9]} 13... Nd7 {[%clk
0:02:52.9]} 14. Bxg7 {[%clk 0:03:03.1]} 14... Kxg7 {[%clk 0:02:52.5]} 15. Qd4+
{[%clk 0:03:03.7]} 15... f6 {[%clk 0:02:52]} 16. f4 {[%clk 0:03:02.7]} 16... Nc5
{[%clk 0:02:40.9]} 17. Rcd1 {[%clk 0:02:41.9]} 17... b6 {[%clk 0:02:29.4]} 18.
Qe3 {[%clk 0:02:35.4]} 18... Qc7 {[%clk 0:01:57.3]} 19. f5 {[%clk 0:02:13]}
19... Nd7 {[%clk 0:01:46.7]} 20. h4 {[%clk 0:02:05.2]} 20... Ne5 {[%clk
0:01:36.8]} 21. g4 {[%clk 0:01:39.1]} 21... gxf5 {[%clk 0:01:21.5]} 22. gxf5
{[%clk 0:01:40]} 22... Kh8 {[%clk 0:01:21.2]} 23. Qh6 {[%clk 0:01:32.2]} 23...
Rg8 {[%clk 0:01:17.2]} 24. Rg1 {[%clk 0:01:28.4]} 24... Rxg1+ {[%clk 0:00:53.1]}
25. Rxg1 {[%clk 0:01:29.3]} 25... Rg8 {[%clk 0:00:52.6]} 26. Bh5 {[%clk
0:01:09.3]} 26... Rxg1+ {[%clk 0:00:33.6]} 27. Kxg1 {[%clk 0:01:10.2]} 27... Qd8
{[%clk 0:00:32.7]} 28. Bg6 {[%clk 0:00:55.7]} 28... Qg8 {[%clk 0:00:32.2]} 29.
h5 {[%clk 0:00:55.7]} 29... Qg7 {[%clk 0:00:29.7]} 30. Qe3 {[%clk 0:00:42.1]}
30... hxg6 {[%clk 0:00:27.6]} 31. hxg6 {[%clk 0:00:34.2]} 31... Nxg6 {[%clk
0:00:25.7]} 32. fxg6 {[%clk 0:00:29.7]} 32... Qxg6+ {[%clk 0:00:25.9]} 33. Kf2
{[%clk 0:00:24.8]} 33... Kg7 {[%clk 0:00:20.2]} 34. Qxb6 {[%clk 0:00:24.5]}
34... Bxe4 {[%clk 0:00:20.1]} 35. Nxe4 {[%clk 0:00:25.4]} 35... Qxe4 {[%clk
0:00:19.9]} 36. Qxa5 {[%clk 0:00:25.4]} 36... Qc2+ {[%clk 0:00:18.9]} 37. Kf3
{[%clk 0:00:24.9]} 37... Qxb2 {[%clk 0:00:18.1]} 38. Qa7 {[%clk 0:00:22.3]}
38... Qc3+ {[%clk 0:00:15.5]} 39. Kg2 {[%clk 0:00:20.6]} 39... Kf7 {[%clk
0:00:15.1]} 40. Qa6 {[%clk 0:00:18.3]} 40... f5 {[%clk 0:00:10.9]} 41. a4 {[%clk
0:00:18.7]} 41... f4 {[%clk 0:00:11.2]} 42. a5 {[%clk 0:00:19.1]} 42... Qg3+
{[%clk 0:00:11.2]} 43. Kf1 {[%clk 0:00:19]} 43... f3 {[%clk 0:00:11.6]} 44. c5
{[%clk 0:00:18.1]} 44... Qg2+ {[%clk 0:00:11.4]} 45. Ke1 {[%clk 0:00:18.7]}
45... f2+ {[%clk 0:00:11.9]} 46. Kd2 {[%clk 0:00:16.5]} 46... f1=Q+ {[%clk
0:00:12.3]} 47. Ke3 {[%clk 0:00:17.2]} 47... Qxa6 {[%clk 0:00:12]} 48. cxd6
{[%clk 0:00:18]} 48... Qxd6 {[%clk 0:00:12]} 49. a6 {[%clk 0:00:17.1]} 49... e5
{[%clk 0:00:12.2]} 50. a7 {[%clk 0:00:17.5]} 50... Qd4# {[%clk 0:00:13]} 0-1

[Event "*** Titled Tuesday Blitz"]
[Site "Chess.com"]
[Date "2020.11.10"]
[Round "1"]
[White "Ural_bogatyr"]
[Black "Evgeny81"]
[Result "0-1"]
[WhiteElo "2368"]
[BlackElo "2715"]
[TimeControl "180+1"]
[EndTime "10:07:34 PST"]
[Termination "Evgeny81 won by resignation"]

1. e4 {[%clk 0:03:00.9]} 1... e6 {[%clk 0:02:57.6]} 2. d4 {[%clk 0:03:00]} 2...
d5 {[%clk 0:02:58.2]} 3. Bd3 {[%clk 0:02:59.5]} 3... dxe4 {[%clk 0:02:57]} 4.
Bxe4 {[%clk 0:03:00.4]} 4... Nf6 {[%clk 0:02:57.3]} 5. Bf3 {[%clk 0:03:01]} 5...
Be7 {[%clk 0:02:51]} 6. Ne2 {[%clk 0:02:59.1]} 6... c5 {[%clk 0:02:48.9]} 7. O-O
{[%clk 0:02:54.7]} 7... Nc6 {[%clk 0:02:48.5]} 8. Be3 {[%clk 0:02:53.9]} 8...
O-O {[%clk 0:02:42.3]} 9. Bxc6 {[%clk 0:02:44.5]} 9... bxc6 {[%clk 0:02:41.5]}
10. dxc5 {[%clk 0:02:45.1]} 10... Nd5 {[%clk 0:02:26.1]} 11. Bd4 {[%clk
0:02:32.2]} 11... Qc7 {[%clk 0:02:25.4]} 12. c4 {[%clk 0:02:23.6]} 12... Nf4
{[%clk 0:02:23.5]} 13. Nbc3 {[%clk 0:02:13.1]} 13... Rd8 {[%clk 0:02:19]} 14.
Qc1 {[%clk 0:02:01]} 14... Nd3 {[%clk 0:02:02]} 15. Qc2 {[%clk 0:01:42.4]} 15...
Nxc5 {[%clk 0:01:59.9]} 16. b4 {[%clk 0:01:41]} 16... Nd7 {[%clk 0:01:57.3]} 17.
c5 {[%clk 0:01:38.4]} 17... e5 {[%clk 0:01:52.2]} 18. Be3 {[%clk 0:01:28.6]}
18... Nf6 {[%clk 0:01:52.5]} 19. h3 {[%clk 0:01:21.3]} 19... Be6 {[%clk
0:01:48.9]} 20. f4 {[%clk 0:01:13]} 20... Nd5 {[%clk 0:01:40.9]} 21. Nxd5 {[%clk
0:01:11]} 21... Bxd5 {[%clk 0:01:41.8]} 22. fxe5 {[%clk 0:01:08.2]} 22... Qxe5
{[%clk 0:01:37.2]} 23. Bf4 {[%clk 0:01:02.5]} 23... Qe4 {[%clk 0:01:15.5]} 24.
Qxe4 {[%clk 0:01:01.4]} 24... Bxe4 {[%clk 0:01:16.4]} 25. Ng3 {[%clk 0:01:00.8]}
25... Bd3 {[%clk 0:01:12.2]} 26. Rfd1 {[%clk 0:00:51.5]} 26... Bf6 {[%clk
0:01:10.8]} 27. Rac1 {[%clk 0:00:45]} 27... Bd4+ {[%clk 0:01:04.5]} 28. Kh2
{[%clk 0:00:40.7]} 28... Bb2 {[%clk 0:01:05.4]} 29. Bd6 {[%clk 0:00:39.4]} 29...
Bxc1 {[%clk 0:01:04.7]} 30. Rxc1 {[%clk 0:00:39.4]} 30... Re8 {[%clk 0:01:00]}
31. Rd1 {[%clk 0:00:38.1]} 31... Bg6 {[%clk 0:00:57.7]} 32. a4 {[%clk
0:00:37.5]} 32... a6 {[%clk 0:00:55.7]} 33. Rd2 {[%clk 0:00:36.3]} 33... h5
{[%clk 0:00:51.2]} 34. Rb2 {[%clk 0:00:35.7]} 34... h4 {[%clk 0:00:46.6]} 35.
Ne2 {[%clk 0:00:34.9]} 35... Re4 {[%clk 0:00:44]} 36. b5 {[%clk 0:00:29.1]}
36... axb5 {[%clk 0:00:43]} 37. axb5 {[%clk 0:00:29.3]} 37... cxb5 {[%clk
0:00:42.9]} 38. Nc3 {[%clk 0:00:29.9]} 38... Re1 {[%clk 0:00:37.5]} 39. g3
{[%clk 0:00:19.5]} 39... hxg3+ {[%clk 0:00:27]} 40. Bxg3 {[%clk 0:00:18.9]}
40... Rc1 {[%clk 0:00:25.5]} 41. Be5 {[%clk 0:00:18.4]} 41... Re8 {[%clk
0:00:18.9]} 42. Bd4 {[%clk 0:00:18.1]} 42... b4 {[%clk 0:00:13.7]} 43. Rxb4
{[%clk 0:00:17.9]} 43... Rc2+ {[%clk 0:00:14]} 44. Kg3 {[%clk 0:00:18]} 44...
Rxc3+ {[%clk 0:00:14.2]} 45. Bxc3 {[%clk 0:00:18.3]} 45... Re3+ {[%clk
0:00:14.8]} 46. Kf4 {[%clk 0:00:18.7]} 46... Rxc3 {[%clk 0:00:15.5]} 0-1

[Event "*** Titled Tuesday Blitz"]
[Site "Chess.com"]
[Date "2020.11.10"]
[Round "1"]
[White "mr65"]
[Black "Lupul_Cenusiu"]
[Result "0-1"]
[WhiteElo "2215"]
[BlackElo "2555"]
[TimeControl "180+1"]
[EndTime "10:07:34 PST"]
[Termination "Lupul_Cenusiu won on time"]

1. e4 {[%clk 0:02:59.9]} 1... c5 {[%clk 0:02:59.1]} 2. Nf3 {[%clk 0:02:57.6]}
2... e6 {[%clk 0:02:59.1]} 3. d4 {[%clk 0:02:56.3]} 3... cxd4 {[%clk 0:02:59.1]}
4. c3 {[%clk 0:02:56.2]} 4... d3 {[%clk 0:02:58.2]} 5. Bxd3 {[%clk 0:02:54.4]}
5... Nc6 {[%clk 0:02:56.3]} 6. O-O {[%clk 0:02:53.4]} 6... d6 {[%clk 0:02:56.9]}
7. c4 {[%clk 0:02:50.3]} 7... Nf6 {[%clk 0:02:55.7]} 8. Nc3 {[%clk 0:02:49.7]}
8... Be7 {[%clk 0:02:56]} 9. b3 {[%clk 0:02:48.8]} 9... O-O {[%clk 0:02:54.6]}
10. Bb2 {[%clk 0:02:48.4]} 10... a6 {[%clk 0:02:55.1]} 11. Qd2 {[%clk
0:02:47.1]} 11... Rb8 {[%clk 0:02:54.2]} 12. Rad1 {[%clk 0:02:46.2]} 12... Bd7
{[%clk 0:02:50.7]} 13. Rfe1 {[%clk 0:02:42.7]} 13... Re8 {[%clk 0:02:50.3]} 14.
Bb1 {[%clk 0:02:35.6]} 14... Qc7 {[%clk 0:02:46]} 15. Rc1 {[%clk 0:02:23.2]}
15... Ne5 {[%clk 0:02:45]} 16. Qe2 {[%clk 0:02:13.7]} 16... b6 {[%clk
0:02:36.1]} 17. Red1 {[%clk 0:02:07.1]} 17... Ng6 {[%clk 0:02:32.2]} 18. g3
{[%clk 0:01:45.2]} 18... Qb7 {[%clk 0:02:25.5]} 19. Nd4 {[%clk 0:01:43.4]} 19...
Bf8 {[%clk 0:02:22]} 20. h4 {[%clk 0:01:26.6]} 20... h5 {[%clk 0:02:16]} 21. Nc2
{[%clk 0:01:04.1]} 21... Ng4 {[%clk 0:02:09.1]} 22. Ne3 {[%clk 0:01:02.2]} 22...
Nxe3 {[%clk 0:02:01.8]} 23. Qxe3 {[%clk 0:01:00.6]} 23... b5 {[%clk 0:01:44]}
24. cxb5 {[%clk 0:00:56.2]} 24... axb5 {[%clk 0:01:43.4]} 25. Qg5 {[%clk
0:00:55.2]} 25... b4 {[%clk 0:01:43.1]} 26. Ne2 {[%clk 0:00:45.5]} 26... Bc6
{[%clk 0:01:41.9]} 27. f3 {[%clk 0:00:36]} 27... Ne5 {[%clk 0:01:35.9]} 28. Kg2
{[%clk 0:00:30.1]} 28... f5 {[%clk 0:01:11.5]} 29. Nf4 {[%clk 0:00:26.6]} 29...
fxe4 {[%clk 0:01:10]} 30. Nxh5 {[%clk 0:00:23.9]} 30... Qf7 {[%clk 0:00:55.3]}
31. Bxe5 {[%clk 0:00:16.2]} 31... dxe5 {[%clk 0:00:54.7]} 32. Bxe4 {[%clk
0:00:13.5]} 32... Bxe4 {[%clk 0:00:53.1]} 33. fxe4 {[%clk 0:00:12.8]} 33... Be7
{[%clk 0:00:35.8]} 34. Qxe5 {[%clk 0:00:11.3]} 34... Bf6 {[%clk 0:00:28.6]} 35.
Nxf6+ {[%clk 0:00:09.7]} 35... gxf6 {[%clk 0:00:28.8]} 36. Qf4 {[%clk
0:00:06.2]} 36... Ra8 {[%clk 0:00:25.2]} 37. Rc7 {[%clk 0:00:05.9]} 37... Re7
{[%clk 0:00:25.4]} 38. Qg4+ {[%clk 0:00:05]} 38... Kf8 {[%clk 0:00:24.3]} 39.
Rxe7 {[%clk 0:00:04.3]} 39... Kxe7 {[%clk 0:00:24.2]} 40. e5 {[%clk 0:00:03.4]}
40... Rxa2+ {[%clk 0:00:20.7]} 41. Kh3 {[%clk 0:00:03.8]} 41... Ke8 {[%clk
0:00:18.1]} 42. exf6 {[%clk 0:00:02.9]} 42... Qxf6 {[%clk 0:00:18.2]} 43. Qg8+
{[%clk 0:00:01.9]} 43... Qf8 {[%clk 0:00:15.9]} 0-1

[Event "*** Titled Tuesday Blitz"]
[Site "Chess.com"]
[Date "2020.11.10"]
[Round "1"]
[White "bazar-wokzal"]
[Black "DarZay"]
[Result "1-0"]
[WhiteElo "2509"]
[BlackElo "2076"]
[TimeControl "180+1"]
[EndTime "10:07:35 PST"]
[Termination "bazar-wokzal won by resignation"]

1. e4 {[%clk 0:02:55]} 1... c5 {[%clk 0:02:59]} 2. c3 {[%clk 0:02:52.8]} 2...
Nf6 {[%clk 0:02:57.4]} 3. e5 {[%clk 0:02:52.3]} 3... Nd5 {[%clk 0:02:50.5]} 4.
d4 {[%clk 0:02:51.2]} 4... d6 {[%clk 0:02:46.1]} 5. c4 {[%clk 0:02:40.8]} 5...
Nb6 {[%clk 0:02:44.5]} 6. dxc5 {[%clk 0:02:39.9]} 6... dxc5 {[%clk 0:02:44.6]}
7. Qxd8+ {[%clk 0:02:39.1]} 7... Kxd8 {[%clk 0:02:44.5]} 8. Nc3 {[%clk
0:02:38.8]} 8... Nc6 {[%clk 0:02:35.5]} 9. Bf4 {[%clk 0:02:33.4]} 9... e6 {[%clk
0:02:28.5]} 10. O-O-O+ {[%clk 0:02:32.9]} 10... Kc7 {[%clk 0:02:27.4]} 11. Nf3
{[%clk 0:02:24.2]} 11... a6 {[%clk 0:02:26.9]} 12. Ng5 {[%clk 0:02:21.5]} 12...
Bd7 {[%clk 0:02:17.3]} 13. Nxf7 {[%clk 0:02:20.3]} 13... Rg8 {[%clk 0:02:17.2]}
14. Ne4 {[%clk 0:02:12.9]} 14... Be7 {[%clk 0:02:08.9]} 15. Nfd6 {[%clk
0:02:08.2]} 15... Rgf8 {[%clk 0:01:58.3]} 16. Bg3 {[%clk 0:02:07.7]} 16... Nd4
{[%clk 0:01:24.1]} 17. Nxc5 {[%clk 0:02:04.7]} 17... Nf5 {[%clk 0:01:23.1]} 18.
Nxd7 {[%clk 0:01:52.2]} 18... Nxd7 {[%clk 0:01:22.2]} 19. Nxf5 {[%clk
0:01:48.6]} 19... Rxf5 {[%clk 0:01:17.7]} 20. Bd3 {[%clk 0:01:46.6]} 20... Rff8
{[%clk 0:01:14.4]} 21. Bxh7 {[%clk 0:01:42.7]} 21... Bc5 {[%clk 0:01:10.7]} 22.
Rd2 {[%clk 0:01:39.3]} 22... Nb6 {[%clk 0:01:04.3]} 23. b3 {[%clk 0:01:29.7]}
23... a5 {[%clk 0:01:02.7]} 24. a4 {[%clk 0:01:17.6]} 24... Bb4 {[%clk
0:00:55.6]} 25. Re2 {[%clk 0:01:10.2]} 25... Rad8 {[%clk 0:00:47.5]} 26. Rd1
{[%clk 0:01:09.3]} 26... Rxd1+ {[%clk 0:00:44]} 27. Kxd1 {[%clk 0:01:09.2]}
27... Nd7 {[%clk 0:00:43]} 28. Kc2 {[%clk 0:01:06.3]} 28... Nc5 {[%clk
0:00:42.4]} 29. Be4 {[%clk 0:00:55.1]} 29... Rd8 {[%clk 0:00:39]} 30. Bf4 {[%clk
0:00:43.8]} 30... Rd4 {[%clk 0:00:35.4]} 31. f3 {[%clk 0:00:41]} 31... Rd8
{[%clk 0:00:19.3]} 32. Bd2 {[%clk 0:00:35.8]} 32... Na6 {[%clk 0:00:17.5]} 33.
Bxb4 {[%clk 0:00:32.9]} 33... Nxb4+ {[%clk 0:00:17.1]} 34. Kc3 {[%clk
0:00:33.4]} 34... b6 {[%clk 0:00:15.5]} 35. h4 {[%clk 0:00:32.7]} 35... Rh8
{[%clk 0:00:14.6]} 36. g3 {[%clk 0:00:32.5]} 36... Rh5 {[%clk 0:00:13.7]} 37. f4
{[%clk 0:00:32]} 37... Rh8 {[%clk 0:00:13.4]} 38. Rd2 {[%clk 0:00:31.4]} 38...
Re8 {[%clk 0:00:12]} 39. Rd6 {[%clk 0:00:31]} 39... Re7 {[%clk 0:00:11.9]} 40.
Bf3 {[%clk 0:00:29]} 40... Na6 {[%clk 0:00:11.8]} 41. Rc6+ {[%clk 0:00:27.7]}
41... Kd7 {[%clk 0:00:10]} 42. Rxb6 {[%clk 0:00:27.6]} 42... Nc5 {[%clk
0:00:10.2]} 43. Rd6+ {[%clk 0:00:27.7]} 43... Ke8 {[%clk 0:00:09.5]} 44. Bh5+
{[%clk 0:00:27.7]} 44... Kf8 {[%clk 0:00:09.1]} 45. Rd8+ {[%clk 0:00:27.6]} 1-0

[Event "*** Titled Tuesday Blitz"]
[Site "Chess.com"]
[Date "2020.11.10"]
[Round "1"]
[White "Chernobay_Artem"]
[Black "Mambastik-Fantastic"]
[Result "1-0"]
[WhiteElo "2626"]
[BlackElo "2307"]
[TimeControl "180+1"]
[EndTime "10:07:38 PST"]
[Termination "Chernobay_Artem won on time"]

1. e4 {[%clk 0:03:00.9]} 1... c5 {[%clk 0:02:59.1]} 2. Nf3 {[%clk 0:03:00.8]}
2... d6 {[%clk 0:02:58.7]} 3. d4 {[%clk 0:03:00.8]} 3... Nf6 {[%clk 0:02:58]} 4.
Nc3 {[%clk 0:02:59.8]} 4... cxd4 {[%clk 0:02:57.8]} 5. Nxd4 {[%clk 0:03:00.7]}
5... a6 {[%clk 0:02:57.6]} 6. Bg5 {[%clk 0:02:58.3]} 6... Nbd7 {[%clk
0:02:55.4]} 7. f4 {[%clk 0:02:33.3]} 7... Qc7 {[%clk 0:02:53.1]} 8. Qe2 {[%clk
0:02:29.6]} 8... h6 {[%clk 0:02:52.6]} 9. Bxf6 {[%clk 0:02:27.5]} 9... Nxf6
{[%clk 0:02:51.4]} 10. e5 {[%clk 0:02:25]} 10... dxe5 {[%clk 0:02:48.7]} 11.
fxe5 {[%clk 0:02:25]} 11... Bg4 {[%clk 0:02:47.8]} 12. Qe3 {[%clk 0:02:20.2]}
12... Nd7 {[%clk 0:02:43.1]} 13. e6 {[%clk 0:02:00.7]} 13... fxe6 {[%clk
0:02:29.9]} 14. h3 {[%clk 0:01:31.2]} 14... e5 {[%clk 0:02:18]} 15. Nb3 {[%clk
0:01:18]} 15... Be6 {[%clk 0:02:02.5]} 16. O-O-O {[%clk 0:01:17]} 16... O-O-O
{[%clk 0:02:00.8]} 17. Be2 {[%clk 0:01:09.7]} 17... g5 {[%clk 0:01:55.1]} 18.
Nd5 {[%clk 0:01:01.8]} 18... Bxd5 {[%clk 0:01:46.3]} 19. Rxd5 {[%clk 0:01:02.7]}
19... e6 {[%clk 0:01:46.3]} 20. Rd3 {[%clk 0:01:02.6]} 20... Bc5 {[%clk
0:01:37.6]} 21. Qe4 {[%clk 0:00:47.5]} 21... Rhf8 {[%clk 0:01:30.7]} 22. Rhd1
{[%clk 0:00:45.3]} 22... Nf6 {[%clk 0:00:54.2]} 23. Qc4 {[%clk 0:00:39.1]} 23...
Rd5 {[%clk 0:00:24.3]} 24. Rxd5 {[%clk 0:00:33.4]} 24... Be3+ {[%clk 0:00:22.2]}
25. R5d2 {[%clk 0:00:25]} 25... Qxc4 {[%clk 0:00:22]} 26. Bxc4 {[%clk
0:00:25.4]} 26... Ne4 {[%clk 0:00:18]} 27. Re1 {[%clk 0:00:21.2]} 27... Nxd2
{[%clk 0:00:16.1]} 28. Nxd2 {[%clk 0:00:20.9]} 28... Bf4 {[%clk 0:00:10.2]} 29.
Kd1 {[%clk 0:00:20.4]} 29... Rd8 {[%clk 0:00:09.5]} 30. Re2 {[%clk 0:00:20.8]}
30... Kc7 {[%clk 0:00:09.6]} 31. Ke1 {[%clk 0:00:20.9]} 31... b5 {[%clk
0:00:09.6]} 32. Bxe6 {[%clk 0:00:20.4]} 32... Kc6 {[%clk 0:00:09.9]} 33. Ne4
{[%clk 0:00:20.3]} 33... Re8 {[%clk 0:00:09]} 34. Bb3 {[%clk 0:00:18.6]} 34...
a5 {[%clk 0:00:09.2]} 35. a4 {[%clk 0:00:18.9]} 35... b4 {[%clk 0:00:08.7]} 36.
Bc4 {[%clk 0:00:17.9]} 36... Rd8 {[%clk 0:00:08.7]} 37. g3 {[%clk 0:00:17.4]}
37... Bc1 {[%clk 0:00:07.1]} 38. b3 {[%clk 0:00:17.9]} 38... Rd4 {[%clk
0:00:06.8]} 39. Kf2 {[%clk 0:00:15.6]} 39... Bb2 {[%clk 0:00:05.3]} 40. Kf3
{[%clk 0:00:14.7]} 40... Bc1 {[%clk 0:00:05.5]} 41. Nf2 {[%clk 0:00:14.5]} 41...
Kd6 {[%clk 0:00:03.8]} 42. Nd3 {[%clk 0:00:13.9]} 42... e4+ {[%clk 0:00:03.3]}
43. Rxe4 {[%clk 0:00:13.6]} 43... Rxe4 {[%clk 0:00:01.5]} 44. Kxe4 {[%clk
0:00:14.5]} 1-0

[Event "*** Titled Tuesday Blitz"]
[Site "Chess.com"]
[Date "2020.11.10"]
[Round "1"]
[White "dominikaf"]
[Black "Yashasd1995"]
[Result "0-1"]
[WhiteElo "2201"]
[BlackElo "2553"]
[TimeControl "180+1"]
[EndTime "10:07:46 PST"]
[Termination "Yashasd1995 won by checkmate"]

1. e4 {[%clk 0:03:00.8]} 1... d5 {[%clk 0:02:58.2]} 2. e5 {[%clk 0:03:00.7]}
2... c5 {[%clk 0:02:57.4]} 3. f4 {[%clk 0:03:01]} 3... Nc6 {[%clk 0:02:57]} 4.
Nf3 {[%clk 0:03:01.6]} 4... Bg4 {[%clk 0:02:56.3]} 5. c3 {[%clk 0:03:01.7]} 5...
e6 {[%clk 0:02:53.8]} 6. d3 {[%clk 0:03:02]} 6... h5 {[%clk 0:02:52.1]} 7. Be2
{[%clk 0:03:02.1]} 7... Nh6 {[%clk 0:02:47.3]} 8. Na3 {[%clk 0:03:01.8]} 8...
Nf5 {[%clk 0:02:21.6]} 9. Nc2 {[%clk 0:03:01.7]} 9... h4 {[%clk 0:02:17.5]} 10.
Ne3 {[%clk 0:02:56.3]} 10... Nxe3 {[%clk 0:02:11.8]} 11. Bxe3 {[%clk 0:02:57.2]}
11... h3 {[%clk 0:02:04.1]} 12. g3 {[%clk 0:02:56.5]} 12... Be7 {[%clk
0:02:03.9]} 13. d4 {[%clk 0:02:50.7]} 13... cxd4 {[%clk 0:02:01.1]} 14. Nxd4
{[%clk 0:02:50.9]} 14... Bxe2 {[%clk 0:01:57.2]} 15. Qxe2 {[%clk 0:02:51.1]}
15... Qa5 {[%clk 0:01:51.5]} 16. O-O {[%clk 0:02:35.1]} 16... Rc8 {[%clk
0:01:42.3]} 17. a3 {[%clk 0:02:22.3]} 17... a6 {[%clk 0:01:35.5]} 18. Nxc6
{[%clk 0:02:08.2]} 18... bxc6 {[%clk 0:01:31]} 19. f5 {[%clk 0:02:08.8]} 19...
Qa4 {[%clk 0:01:06]} 20. b4 {[%clk 0:01:59.9]} 20... Kd7 {[%clk 0:00:56.5]} 21.
fxe6+ {[%clk 0:01:26.6]} 21... fxe6 {[%clk 0:00:57.4]} 22. Rf7 {[%clk
0:01:26.7]} 22... Rcf8 {[%clk 0:00:55.3]} 23. Raf1 {[%clk 0:01:26.6]} 23... Rxf7
{[%clk 0:00:33.1]} 24. Rxf7 {[%clk 0:01:26.3]} 24... Ke8 {[%clk 0:00:32.9]} 25.
Rf1 {[%clk 0:01:07]} 25... Qxa3 {[%clk 0:00:31.4]} 26. Bd4 {[%clk 0:01:01.8]}
26... g5 {[%clk 0:00:22.4]} 27. Qc2 {[%clk 0:00:53.7]} 27... Kd7 {[%clk
0:00:16.6]} 28. Rf7 {[%clk 0:00:44.5]} 28... Re8 {[%clk 0:00:16.7]} 29. Bc5
{[%clk 0:00:43.1]} 29... Qa1+ {[%clk 0:00:17.1]} 30. Kf2 {[%clk 0:00:42.5]}
30... Qh1 {[%clk 0:00:16]} 31. Ke3 {[%clk 0:00:38.1]} 31... Qg1+ {[%clk
0:00:14.9]} 32. Kd3 {[%clk 0:00:38.4]} 32... Qg2 {[%clk 0:00:12.3]} 33. Qxg2
{[%clk 0:00:35.1]} 33... hxg2 {[%clk 0:00:13.2]} 34. Bg1 {[%clk 0:00:35.6]}
34... Rf8 {[%clk 0:00:11.5]} 35. Rxf8 {[%clk 0:00:32.8]} 35... Bxf8 {[%clk
0:00:12.4]} 36. Ke2 {[%clk 0:00:32.6]} 36... c5 {[%clk 0:00:13.3]} 37. bxc5
{[%clk 0:00:32.1]} 37... a5 {[%clk 0:00:13.3]} 38. Kf3 {[%clk 0:00:27.2]} 38...
a4 {[%clk 0:00:13.2]} 39. Bd4 {[%clk 0:00:27.9]} 39... g1=Q {[%clk 0:00:12.3]}
40. Bxg1 {[%clk 0:00:27.1]} 40... a3 {[%clk 0:00:12.6]} 41. Bd4 {[%clk
0:00:27.1]} 41... a2 {[%clk 0:00:12.8]} 42. c4 {[%clk 0:00:27.8]} 42... Bxc5
{[%clk 0:00:12.9]} 43. Bb2 {[%clk 0:00:28.4]} 43... dxc4 {[%clk 0:00:13.3]} 44.
Ke4 {[%clk 0:00:26.2]} 44... g4 {[%clk 0:00:09.7]} 45. Bc3 {[%clk 0:00:22.7]}
45... Bg1 {[%clk 0:00:08.3]} 46. Kf4 {[%clk 0:00:20.5]} 46... Kc6 {[%clk
0:00:08.6]} 47. Kxg4 {[%clk 0:00:20.6]} 47... Kd5 {[%clk 0:00:09.3]} 48. Kf4
{[%clk 0:00:19.5]} 48... Bd4 {[%clk 0:00:09.8]} 49. Bxd4 {[%clk 0:00:13.1]}
49... Kxd4 {[%clk 0:00:10.7]} 50. g4 {[%clk 0:00:14]} 50... a1=Q {[%clk
0:00:08.5]} 51. h4 {[%clk 0:00:14.9]} 51... Qf1+ {[%clk 0:00:08.5]} 52. Kg5
{[%clk 0:00:15.3]} 52... Kxe5 {[%clk 0:00:09.4]} 53. h5 {[%clk 0:00:16.2]} 53...
Qf6# {[%clk 0:00:09.3]} 0-1